fUSD/lending_fUSD_20240416
["ID","MTS","AMOUNT","RATE_DAILY","PERIOD"]
[322752326,1713244238650,-150.0,0.00019204,2]
[322752327,1713244238660,-150.0,0.00019213,2]
[322752328,1713244238670,-300.0,0.00019214,2]
[322752329,1713244238680,-150.0,0.00019218,2]
[322752330,1713244238690,-300.0,0.00019218,2]
[322752331,1713244238699,-1500.0,0.00019218,2]
[322752332,1713244238709,-150.0,0.00019219,2]
[322752333,1713244238719,-150.0,0.00019224,2]
[322752334,1713244238728,-1500.0,0.00019225,2]
[322752335,1713244238738,-150.0,0.00019232,2]
[322752336,1713244238748,-150.0,0.00019235,2]
[322752337,1713244238757,-259.24234485,0.00019242,2]
[322752338,1713244238766,-4083.09248345,0.00019244,2]
[322752339,1713244238775,-3297.28305916,0.00019249,2]
[322752340,1713244238785,-301.02138235,0.00019253,2]
[322752341,1713244238795,-150.0,0.00019258,2]
[322752342,1713244238804,-150.0,0.00019261,2]
[322752343,1713244238814,-150.0,0.00019269,2]
[322752344,1713244238824,-150.0,0.00019272,2]
[322752345,1713244238833,-150.0,0.00019276,2]
[322752346,1713244238843,-300.0,0.00019278,2]
[322752347,1713244238856,-1500.0,0.00019278,2]
[322752348,1713244238866,-150.0,0.00019279,2]
[322752350,1713244238875,-214.7770374,0.00019288,2]
[322752352,1713244238884,-802.58360074,0.00019288,2]
[322752354,1713244238894,-266.14996478,0.00019289,2]
[322752356,1713244238904,-150.0,0.0001929,2]
[322752358,1713244238914,-3000.0,0.0001929,2]
[322752361,1713244238925,-3000.0,0.0001929,2]
[322752363,1713244238935,-3000.0,0.0001929,2]
[322752365,1713244238944,-150.0,0.00019291,2]
[322752366,1713244238954,-300.0,0.00019291,2]
[322752368,1713244238964,-300.0,0.00019295,2]
[322752370,1713244238974,-303.15770896,0.00019296,2]
[322752372,1713244238983,-150.0,0.00019296,2]
[322752374,1713244238993,-1500.0,0.00019309,2]
[322752376,1713244239003,-9076.71331588,0.00019314,2]
[322752378,1713244239012,-150.0,0.00019314,2]
[322752380,1713244239021,-150.0,0.00019315,2]
[322752383,1713244239031,-300.0,0.00019318,2]
[322752385,1713244239041,-300.0,0.00019319,2]
[322752387,1713244239051,-150.0,0.0001932,2]
[322752389,1713244239061,-150.0,0.00019324,2]
[322752391,1713244239071,-300.0,0.00019326,2]
[322752392,1713244239082,-150.0,0.00019328,2]
[322752395,1713244239092,-300.0,0.00019334,2]
[322752397,1713244239106,-150.0,0.00019335,2]
[322752398,1713244239115,-300.0,0.00019339,2]
[322752401,1713244239126,-150.0,0.00019341,2]
[322752402,1713244239136,-150.0,0.00019342,2]
[322752405,1713244239146,-475.53717214,0.00019343,2]
[322752407,1713244239157,-150.0,0.00019345,2]
[322752408,1713244239169,-150.0,0.00019345,2]
[322752411,1713244239180,-150.0,0.00019351,2]
[322752413,1713244239190,-150.0,0.00019354,2]
[322752415,1713244239200,-300.0,0.00019354,2]
[322752416,1713244239210,-150.0,0.00019356,2]
[322752419,1713244239221,-263.49,0.00019358,2]
[322752421,1713244239232,-150.0,0.00019359,2]
[322752423,1713244239243,-1500.0,0.00019361,2]
[322752424,1713244239252,-300.0,0.00019363,2]
[322752426,1713244239262,-150.0,0.00019363,2]
[322752429,1713244239273,-150.0,0.00019364,2]
[322752431,1713244239284,-300.0,0.00019365,2]
[322752433,1713244239294,-1500.0,0.00019368,2]
[322752435,1713244239305,-300.0,0.00019373,2]
[322752437,1713244239317,-150.0,0.00019373,2]
[322752439,1713244239326,-300.0,0.00019376,2]
[322752440,1713244239336,-150.0,0.00019379,2]
[322752442,1713244239346,-150.0,0.0001938,2]
[322752445,1713244239357,-150.0,0.00019381,2]
[322752447,1713244239366,-168.08267013,0.00019383,2]
[322752449,1713244239376,-150.0,0.00019383,2]
[322752451,1713244239386,-727.5105222,0.00019386,2]
[322752453,1713244239396,-1500.0,0.00019387,2]
[322752455,1713244239406,-300.0,0.00019388,2]
[322752456,1713244239416,-150.0,0.00019395,2]
[322752458,1713244239426,-150.0,0.00019403,2]
[322752460,1713244239436,-150.0,0.00019405,2]
[322752463,1713244239446,-3078.77212582,0.00019406,2]
[322752465,1713244239455,-150.0,0.00019407,2]
[322752467,1713244239466,-1500.0,0.00019411,2]
[322752468,1713244239475,-300.0,0.00019413,2]
[322752470,1713244239485,-1500.0,0.00019413,2]
[322752472,1713244239497,-4083.09248345,0.00019416,2]
[322752474,1713244239508,-150.0,0.00019419,2]
[322752477,1713244239519,-150.0,0.0001942,2]
[322752479,1713244239529,-150.0,0.00019423,2]
[322752481,1713244239540,-150.0,0.00019427,2]
[322752483,1713244239550,-300.0,0.00019427,2]
[322752485,1713244239560,-1500.0,0.00019431,2]
[322752487,1713244239570,-150.0,0.00019432,2]
[322752489,1713244239579,-300.0,0.00019432,2]
[322752491,1713244239590,-150.0,0.00019441,2]
[322752493,1713244239603,-1500.0,0.00019441,2]
[322752495,1713244239613,-150.0,0.00019447,2]
[322752497,1713244239622,-150.0,0.00019447,2]
[322752498,1713244239632,-150.0,0.00019451,2]
[322752501,1713244239642,-150.0,0.00019453,2]
[322752503,1713244239652,-300.0,0.00019454,2]
[322752504,1713244239661,-4573.26074924,0.00019465,2]
[322752507,1713244239671,-300.0,0.00019471,2]
[322752508,1713244239682,-300.0,0.00019475,2]
[322752511,1713244239691,-300.0,0.00019475,2]
[322752513,1713244239701,-9076.71331588,0.00019476,2]
[322752515,1713244239711,-300.0,0.00019479,2]
[322752516,1713244239723,-7728.98965993,0.00019483,2]
[322752519,1713244239733,-2047.62177569,0.00019483,2]
[322752521,1713244239743,-489.50678627,0.00019483,2]
[322752523,1713244239755,-263.63005069,0.00019483,2]
[322752525,1713244239765,-4716.5472582,0.00019483,2]
[322752527,1713244239776,-155.0,0.00019483,2]
[322752528,1713244239787,-1946.86361885,0.00019483,2]
[322752531,1713244239798,-236.21588443,0.00019483,2]
[322752533,1713244239808,-1240.66300341,0.00019483,2]
[322752535,1713244239818,-4314.61098704,0.00019484,2]
[322752537,1713244239829,-11277.80946076,0.00019484,2]
[322752539,1713244239840,-205.92323207,0.00019484,2]
[322752540,1713244239851,-1157.25049225,0.00019484,2]
[322752543,1713244239861,-3692.50343558,0.00019484,2]
[322752545,1713244239871,-375.85470948,0.00019484,2]
[322752547,1713244239882,-386050.75968615,0.00019485,2]
[322752549,1713244239892,-473.54212515,0.00019485,2]
[322752551,1713244239902,-1024733.87210155,0.00019486,2]
[322752614,1713244240489,-353.7245774,0.00019486,2]
[322752619,1713244240528,-438.6258577,0.00019486,2]
[322752651,1713244240829,-374.73553,0.00019486,2]
[322752653,1713244240841,-430.8171054,0.00019486,2]
[322752655,1713244240853,-2567.6647854,0.00019486,2]
[322752658,1713244240864,-464.99330013,0.00019486,2]
[322752660,1713244240874,-654.63777491,0.00019486,2]
[322752662,1713244240885,-757.35704852,0.00019486,2]
[322752943,1713244243570,-1000.0,0.00018352,2]
[322752946,1713244243580,-1065.0,0.00019485,2]
[322752948,1713244243591,-60538.26770795,0.00019486,2]
[322752951,1713244243604,-7629.317315,0.00019486,2]
[322752976,1713244243833,-21821.60556446,0.00019486,2]
[322753052,1713244246531,-270.42728545,0.00019485,2]
[322753053,1713244246748,-120.70814005,0.00019485,2]
[322753054,1713244246758,-816.32198195,0.00019486,2]
[322753069,1713244332896,177.93799488,0.00026438,30]
[322753070,1713244333108,177.93799488,0.00026822,30]
[322753071,1713244335726,548.32645013,0.00015589,2]
[322753072,1713244405895,320.09,0.00016662,2]
[322753073,1713244545444,155.23386261,0.00017534,2]
[322753081,1713244863964,10000.0,0.00027,30]
[322753082,1713245033146,304.08,0.0001651,2]
[322753083,1713245236495,795.11308446,0.00018,2]
[322753084,1713245246385,806.30534817,0.0002,120]
[322753101,1713245431570,-203.78155668,0.0001808,2]
[322753102,1713245431579,-155.0,0.0001808,2]
[322753103,1713245431589,-521.1258215,0.00018081,2]
[322753104,1713245431601,-1346.0,0.00018083,2]
[322753105,1713245431610,-800.0,0.00018084,2]
[322753106,1713245431620,-500.0,0.00018131,2]
[322753107,1713245431629,-1082.11,0.0001814,2]
[322753108,1713245431639,-166.45,0.00018325,2]
[322753109,1713245431649,-200.0,0.00018394,2]
[322753110,1713245431659,-173.72258374,0.00018402,2]
[322753111,1713245431668,-2769.08147958,0.00018414,2]
[322753112,1713245431706,-453.997,0.00018414,2]
[322753113,1713245431791,-894.74152042,0.00018414,2]
[322753114,1713245431802,-150.0,0.00018457,2]
[322753115,1713245431811,-5226.2295,0.00018458,2]
[322753116,1713245431821,-150.99,0.00018458,2]
[322753117,1713245431831,-488.15265158,0.00018509,2]
[322753166,1713245437571,-1198.31946372,0.00018509,2]
[322753169,1713245437581,-500.0,0.000186,6]
[322753172,1713245437591,-1000.0,0.000187,6]
[322753175,1713245437600,-304.08,0.00018774,2]
[322753177,1713245437609,-1500.0,0.000188,6]
[322753179,1713245437619,-499.99,0.00018887,2]
[322753181,1713245437629,-3265.0720514,0.00018888,2]
[322753183,1713245437640,-313.715,0.00018888,2]
[322753188,1713245437673,-296.87296292,0.00018888,2]
[322753190,1713245437685,-384.54499982,0.00018888,2]
[322753194,1713245437712,-343.15999906,0.00018888,2]
[322753198,1713245437856,-705.281867,0.00018888,2]
[322753199,1713245437874,-75118.92889821,0.00018888,2]
[322753200,1713245437884,-2000.0,0.000189,6]
[322753201,1713245437894,-299.07414017,0.00019,2]
[322753202,1713245437904,-1500.0,0.00019178,2]
[322753203,1713245437915,-3000.0,0.0001929,2]
[322753204,1713245437925,-154.10473008,0.00019291,2]
[322753205,1713245437935,-2976.86566288,0.0001938,2]
[322753206,1713245437945,-5568.69793785,0.0001938,2]
[322753207,1713245437956,-1012.29050615,0.00019385,2]
[322753208,1713245437966,-316.72144458,0.00019385,2]
[322753210,1713245437975,-2646.1728149,0.00019385,2]
[322753212,1713245437985,-168.08267013,0.00019386,2]
[322753213,1713245437994,-148026.0,0.00019479,2]
[322753214,1713245438003,-5000.0,0.0001948,2]
[322753215,1713245438013,-208.96057669,0.00019483,2]
[322753216,1713245438022,-245.14603926,0.00019483,2]
[322753217,1713245438034,-534.39055613,0.00019484,2]
[322753218,1713245438042,-191.52240016,0.00019484,2]
[322753219,1713245438051,-316.53744823,0.00019484,2]
[322753220,1713245438060,-364.15282448,0.00019485,2]
[322753221,1713245438070,-9834.11017083,0.00019485,2]
[322753222,1713245438079,-765252.11328082,0.00019485,2]
[322753229,1713245438110,-32141.594347,0.00019485,2]
[322753431,1713245439993,-499.99,0.00019178,2]
[322753433,1713245440003,-1062.5958242,0.00019485,2]
[322753481,1713245440438,-1788.36076866,0.00019485,2]
[322753485,1713245440471,-1230.42064838,0.00019485,2]
[322753487,1713245440483,-1036.73511253,0.00019485,2]
[322753489,1713245440494,-528.09556203,0.00019485,2]
[322753689,1713245442982,-414.66000001,0.00019485,2]
[322753690,1713245442995,-3261.51873311,0.00019485,2]
[322753691,1713245443122,-532.8613405,0.00019485,2]
[322753692,1713245443135,-6276.9,0.00019485,2]
[322753693,1713245443147,-1481.10993439,0.00019485,2]
[322753694,1713245443185,-4265.42629021,0.00019485,2]
[322753695,1713245443197,-892.77900553,0.00019485,2]
[322753696,1713245443210,-9918.48375552,0.00019485,2]
[322753697,1713245443233,-2697.22304587,0.00019485,2]
[322753698,1713245443261,-906.69354442,0.00019485,2]
[322753699,1713245443295,-712.25336479,0.00019485,2]
[322753742,1713245445674,-7246.79938503,0.00019485,2]
[322753743,1713245445803,-1068.48343565,0.00019485,2]
[322753744,1713245445841,-3263.05456277,0.00019485,2]
[322753745,1713245445901,-521.1258215,0.00019484,2]
[322753746,1713245445911,-1101.00838012,0.00019485,2]
[322753747,1713245445923,-9048.81018683,0.00019485,2]
[322753748,1713245528676,288.74,0.00016646,2]
[322753749,1713245564701,161.51,0.00027748,120]
[322753751,1713246026511,274.3,0.00016337,2]
[322753765,1713246581454,260.58,0.00016247,2]
[322753783,1713246631766,-203.78155668,0.00018188,2]
[322753784,1713246631776,-720.73,0.00018189,2]
[322753785,1713246631785,-1000.0,0.00018268,2]
[322753786,1713246631796,-161.51,0.00018499,2]
[322753787,1713246631805,-194.56532166,0.00018511,2]
[322753788,1713246631818,-66.01467834,0.00018511,2]
[322753789,1713246631827,-260.9307766,0.00018619,2]
[322753790,1713246631872,-3462.9722234,0.00018619,2]
[322753791,1713246631882,-150.0,0.0001863,2]
[322753792,1713246631891,-251.0371236,0.00018637,2]
[322753793,1713246631929,-1395.5339715,0.00018637,2]
[322753794,1713246631940,-1983.3509049,0.00018637,2]
[322753795,1713246631949,-150.0,0.0001865,2]
[322753796,1713246631959,-410.07023358,0.00018651,2]
[322753797,1713246631997,-393.96917738,0.00018651,2]
[322753798,1713246632008,-330.6449995,0.00018651,2]
[322753799,1713246632020,-2522.18858954,0.00018651,2]
[322753800,1713246632031,-386.29,0.00018651,2]
[322753801,1713246632040,-147.36712646,0.00018672,2]
[322753802,1713246632052,-2784.48495281,0.00018672,2]
[322753803,1713246632082,-807.45992073,0.00018672,2]
[322753804,1713246632091,-426.92592674,0.00018672,2]
[322753805,1713246632108,-73.06407326,0.00018672,2]
[322753806,1713246632122,-456.93592674,0.00018698,2]
[322753849,1713246637809,-275.68,0.00018698,2]
[322753850,1713246637820,-313.948,0.00018698,2]
[322753851,1713246637972,-2576.40807326,0.00018698,2]
[322753852,1713246637982,-300.0,0.000187,6]
[322753853,1713246637992,-150.0,0.000187,2]
[322753854,1713246638001,-2923.73225295,0.00018717,2]
[322753855,1713246638027,-786.16274705,0.00018717,2]
[322753856,1713246638036,-3655.496,0.00018781,2]
[322753857,1713246638046,-150.0,0.000188,2]
[322753858,1713246638055,-600.0,0.000188,6]
[322753859,1713246638063,-3633.992,0.00018862,2]
[322753860,1713246638073,-900.0,0.000189,6]
[322753861,1713246638082,-2511.44237916,0.00018945,2]
[322753873,1713246640486,-607.8968724,0.00018945,2]
[322753874,1713246640500,-534.07274844,0.00018945,2]
[322753875,1713246640509,-551.01939592,0.00018998,2]
[322753876,1713246640518,-1053.11285564,0.00019,3]
[322753877,1713246640529,-496.88714436,0.00019,3]
[322753878,1713246640539,-1000.0,0.00019025,2]
[322753879,1713246640548,-28.1067557,0.00019025,2]
[322753880,1713246640559,-703.71968254,0.00019025,2]
[322753881,1713246640571,-268.17356176,0.00019025,2]
[322753882,1713246640581,-3670.992,0.00019026,2]
[322753883,1713246640590,-3698.213,0.00019124,2]
[322753884,1713246640603,-441.282439,0.00019178,2]
[322753885,1713246640613,-3727.937,0.00019248,2]
[322753886,1713246640623,-325.46030338,0.00019288,2]
[322753887,1713246640632,-154.10473008,0.00019291,2]
[322753888,1713246640642,-10000.0,0.00019367,2]
[322753889,1713246640651,-5011.82814411,0.00019383,2]
[322753890,1713246640660,-2315.40121302,0.00019385,2]
[322753891,1713246640672,-316.72144454,0.00019385,2]
[322753892,1713246640682,-927.93296398,0.00019386,2]
[322753893,1713246640691,-272.5145,0.00019389,2]
[322753894,1713246640700,-3665.704,0.00019424,2]
[322753895,1713246640710,-3719.807,0.00019447,2]
[322753896,1713246640720,-150.0,0.00019452,2]
[322753897,1713246640729,-3744.351,0.00019468,2]
[322753898,1713246640739,-14260.5229077,0.00019481,2]
[322753899,1713246640748,-90516.338521,0.00019481,2]
[322753900,1713246640758,-303.22233463,0.00019483,2]
[322753901,1713246640767,-530.0,0.00019484,2]
[322753902,1713246640777,-909.0,0.00019485,2]
[322753903,1713246640786,-3657.374,0.00019485,2]
[322753904,1713246640796,-809861.3041288,0.00019485,2]
[322753905,1713246640805,-206.98170683,0.00019485,2]
[322753906,1713246640815,-5838.21584113,0.00019485,2]
[322753907,1713246640825,-3000.0,0.00019485,2]
[322753908,1713246640834,-557306.61724359,0.00019486,2]
[322753917,1713246642881,-14064.05000027,0.00019486,2]
[322753922,1713246642937,-375270.69322222,0.00019486,2]
[322753923,1713246642947,-3311.83915084,0.00019486,2]
[322753925,1713246642957,-6269.0355426,0.00019487,2]
[322753927,1713246642967,-316.72144454,0.00019494,2]
[322753929,1713246642976,-1287.58,0.000195,2]
[322753930,1713246642986,-1789.28,0.000195,2]
[322753932,1713246642996,-5011.82814403,0.00019501,2]
[322753934,1713246643006,-927.93296395,0.00019515,2]
[322753936,1713246643015,-164.92,0.00019533,2]
[322753937,1713246643025,-2315.40121302,0.00019537,2]
[322753938,1713246643035,-170.92,0.00019584,2]
[322753939,1713246643044,-1017.0,0.000196,2]
[322753941,1713246643054,-3877.0,0.000196,2]
[322753943,1713246643064,-316.72144454,0.00019603,2]
[322753944,1713246643074,-5011.82814403,0.00019619,2]
[322753946,1713246643084,-927.93296395,0.00019643,2]
[322753947,1713246643093,-200.0,0.00019681,2]
[322753948,1713246643104,-274.93,0.00019687,2]
[322753949,1713246643113,-2315.40121302,0.00019688,2]
[322753950,1713246643123,-316.72144454,0.00019712,2]
[322753951,1713246643133,-1000.0,0.00019726,2]
[322753952,1713246643143,-513.46493348,0.0001973,2]
[322753953,1713246643153,-5011.82814403,0.00019738,2]
[322753954,1713246643163,-927.93296395,0.00019772,2]
[322753955,1713246643174,-700.0,0.0001978,2]
[322753956,1713246643183,-500.0,0.0001978,2]
[322753957,1713246643193,-1200.0,0.000198,7]
[322753958,1713246643202,-316.72144454,0.0001982,2]
[322753959,1713246643211,-2315.40121302,0.0001984,2]
[322753960,1713246643222,-5011.82814403,0.00019856,2]
[322753961,1713246643235,-200.0,0.00019856,2]
[322753962,1713246643244,-1000.0,0.00019856,2]
[322753963,1713246643254,-500.0,0.00019856,2]
[322753964,1713246643264,-200.0,0.00019856,2]
[322753965,1713246643273,-1500.0,0.000199,7]
[322753966,1713246643284,-927.93296395,0.000199,2]
[322753967,1713246643293,-316.72144454,0.00019929,2]
[322753968,1713246643304,-3297.28305916,0.00019959,2]
[322753969,1713246643313,-175.0,0.0001996,2]
[322753970,1713246643323,-5011.82814403,0.00019974,2]
[322753971,1713246643332,-1410.80327668,0.00019982,2]
[322753972,1713246643341,-2315.40121302,0.00019992,2]
[322753973,1713246643350,-155.0,0.00019998,2]
[322753974,1713246643360,-2481.16684286,0.0002,2]
[322753975,1713246643369,-865.39796139,0.0002,2]
[322753976,1713246643379,-244.66210899,0.0002,2]
[322753977,1713246643388,-155.39141843,0.0002,2]
[322753978,1713246643397,-570.545397,0.0002,2]
[322753979,1713246643406,-6284.79886044,0.0002,2]
[322753980,1713246643418,-2043.04431056,0.0002,2]
[322753981,1713246643427,-155.3273009,0.0002,2]
[322753982,1713246643436,-644.85448079,0.0002,2]
[322753983,1713246643445,-1256.3256564,0.0002,2]
[322753984,1713246643455,-1771.09921064,0.0002,2]
[322753985,1713246643464,-155.18116152,0.0002,2]
[322753986,1713246643474,-179.92812752,0.0002,2]
[322753987,1713246643483,-29000.0,0.0002,2]
[322753988,1713246643493,-240.26249338,0.0002,2]
[322753989,1713246643502,-500.0,0.0002,2]
[322753990,1713246643510,-500.0,0.0002,2]
[322753991,1713246643519,-2445.03553402,0.0002,2]
[322753992,1713246643528,-294.91212825,0.0002,2]
[322753993,1713246643538,-64041.80973133,0.0002,2]
[322753994,1713246645893,-206.98170683,0.00019485,2]
[322753995,1713246645904,-5838.21584113,0.00019485,2]
[322753996,1713246645913,-590.39915225,0.00019494,2]
[322753997,1713246645925,-21253.58503589,0.0002,2]
[322753998,1713246646112,-356.4561,0.0002,2]
[322753999,1713246646165,-942.405,0.0002,2]
[322754000,1713246646177,-1885.2129361,0.0002,2]
[322754004,1713246764909,183.39663818,0.00026027,30]
[322754005,1713246765002,183.39663818,0.00026438,30]
[322754006,1713246765110,183.39663818,0.00026822,30]
[322754007,1713246765354,183.39663818,0.00027205,30]
[322754022,1713247104077,1011.00733434,0.00014849,2]
[322754075,1713247150309,20154.43535969,0.00014849,2]
[322754076,1713247151024,7494.03540754,0.00014849,2]
[322754077,1713247159395,19659.47289804,0.00014849,2]
[322754078,1713247162345,530.47640954,0.00011879,2]
[322754079,1713247170440,4443.75999078,0.00014849,2]
[322754080,1713247171051,7494.03540754,0.00014849,2]
[322754081,1713247173384,19659.47289804,0.00014849,2]
[322754082,1713247190271,282.74,0.0001696,2]
[322754083,1713247191029,6613.4869022,0.00014849,2]
[322754084,1713247193396,19659.47289804,0.00014849,2]
[322754085,1713247213401,19659.47289804,0.00014849,2]
[322754086,1713247231389,5892.179365,0.00014849,2]
[322754087,1713247317413,19659.47289804,0.00014849,2]
[322754088,1713247323044,7494.03540754,0.00014849,2]
[322754089,1713247330326,20154.43535969,0.00014849,2]
[322754090,1713247337048,7488.9273102,0.00014849,2]
[322754091,1713247339407,19645.89171642,0.00014849,2]
[322754092,1713247348327,20140.98022857,0.00014849,2]
[322754097,1713247529283,500.0,0.00028,30]
[322754098,1713247541369,530.0,0.00022,10]
[322754099,1713247603161,2538.98077247,0.000165,2]
[322754100,1713247619162,2538.98077247,0.000165,2]
[322754101,1713247635191,1832.7642166,0.000165,2]
[322754102,1713247644845,187.18,0.00016712,2]
[322754103,1713247651251,42559.14955139,0.000165,2]
[322754105,1713247669252,42559.14955139,0.000165,2]
[322754106,1713247684104,500.0,0.00022,10]
[322754107,1713247687248,42559.14955139,0.000165,2]
[322754108,1713247756303,268.6,0.00016706,2]
[322754109,1713247767763,42559.14955139,0.000165,2]
[322754110,1713247785766,42559.14955139,0.000165,2]
[322754111,1713247809788,42559.14955139,0.000165,2]
[322754114,1713247831789,42559.14955139,0.000165,2]
[322754131,1713247831983,-203.78155668,0.00018386,2]
[322754133,1713247831993,-1057.8284535,0.00018387,2]
[322754135,1713247832038,-11521.35111488,0.00018387,2]
[322754136,1713247832047,-150.0,0.00018487,2]
[322754137,1713247832057,-2455.05,0.00018594,2]
[322754138,1713247832066,-23900.0,0.00018612,2]
[322754139,1713247832075,-1497.4,0.00018689,2]
[322754140,1713247832084,-757.92773762,0.00018807,2]
[322754141,1713247832093,-197.8196799,0.00018808,2]
[322754142,1713247832102,-1308.58983327,0.00018808,2]
[322754143,1713247832111,-584.530773,0.00018904,2]
[322754144,1713247832124,-268.6,0.0001897,2]
[322754145,1713247832134,-1550.0,0.00019,3]
[322754146,1713247832144,-1000.0,0.00019062,2]
[322754147,1713247832153,-2381.25291365,0.00019099,2]
[322754148,1713247832164,-2259.37,0.00019178,2]
[322754149,1713247832173,-6363.3,0.00019178,2]
[322754150,1713247832182,-170.92,0.00019213,2]
[322754151,1713247832191,-8557.13,0.00019292,2]
[322754152,1713247832201,-10000.0,0.00019292,2]
[322754153,1713247832210,-499.99,0.00019452,2]
[322754154,1713247832219,-302.379778,0.000195,2]
[322754155,1713247832229,-164.92,0.00019583,2]
[322754156,1713247832238,-200.0,0.00019585,2]
[322754157,1713247832247,-1000.0,0.00019585,2]
[322754158,1713247832256,-500.0,0.00019585,2]
[322754159,1713247832265,-200.0,0.00019585,2]
[322754160,1713247832275,-1500.4987,0.00019596,2]
[322754161,1713247832284,-2075.88942394,0.00019596,2]
[322754162,1713247832294,-3777.0,0.000196,2]
[322754163,1713247832304,-6178.2994,0.000196,2]
[322754164,1713247832313,-5159.74889939,0.000196,2]
[322754165,1713247832322,-485.43,0.0001969,3]
[322754166,1713247832331,-2075.88942386,0.00019691,2]
[322754167,1713247832341,-5159.74889931,0.00019694,2]
[322754168,1713247832351,-150.608,0.00019696,2]
[322754169,1713247832361,-1228.0,0.00019696,2]
[322754171,1713247832373,-541.0,0.00019696,2]
[322754173,1713247832383,-1254.0,0.00019696,2]
[322754175,1713247832393,-609.0,0.00019696,2]
[322754177,1713247832402,-807.0,0.00019696,2]
[322754179,1713247832412,-282.118,0.00019696,2]
[322754181,1713247832421,-1959.384,0.00019696,2]
[322754184,1713247832431,-439.219,0.00019696,2]
[322754187,1713247832440,-3078.0,0.00019696,2]
[322754188,1713247832450,-2442.0,0.00019696,2]
[322754190,1713247832459,-401.703,0.00019696,2]
[322754191,1713247832469,-1472.0,0.00019696,2]
[322754192,1713247832478,-150.722,0.00019696,2]
[322754193,1713247832488,-215.0,0.00019696,2]
[322754194,1713247832498,-150.62,0.00019696,2]
[322754195,1713247832508,-1638.0,0.00019696,2]
[322754196,1713247832518,-357.214,0.00019696,2]
[322754197,1713247832527,-444.967,0.00019696,2]
[322754198,1713247832537,-65301.7262,0.000197,2]
[322754199,1713247832547,-10458.3979,0.000197,2]
[322754200,1713247832556,-28936.4335,0.000197,2]
[322754201,1713247832567,-7451.5214,0.000197,2]
[322754202,1713247832578,-1428.3728,0.000197,2]
[322754203,1713247832591,-1360.3254,0.000197,2]
[322754204,1713247832602,-1000.0,0.000197,2]
[322754205,1713247832611,-1184.28283051,0.000197,2]
[322754206,1713247832623,-316.72144454,0.000197,2]
[322754207,1713247832634,-584.530773,0.00019726,2]
[322754208,1713247832644,-500.0,0.0001978,2]
[322754209,1713247832657,-800.0,0.0001978,2]
[322754210,1713247832668,-500.0,0.0001978,2]
[322754211,1713247832677,-500.0,0.0001978,2]
[322754212,1713247832687,-2075.88942386,0.00019785,2]
[322754213,1713247832696,-5159.74889931,0.00019788,2]
[322754214,1713247832706,-176.4014243,0.00019798,2]
[322754215,1713247832715,-154.10473008,0.00019799,2]
[322754216,1713247832725,-2437.91421218,0.000198,2]
[322754217,1713247832747,-746.32988782,0.000198,2]
[322754218,1713247832760,-500.0,0.000198,2]
[322754219,1713247832772,-1119.38565481,0.000198,2]
[322754220,1713247832785,-6287.00639652,0.000198,2]
[322754221,1713247832825,-1556.29417988,0.000198,2]
[322754222,1713247832837,-1662.5834465,0.000198,2]
[322754223,1713247832865,-380.03886704,0.000198,2]
[322754224,1713247832878,-1203.03223355,0.000198,2]
[322754251,1713247838032,-1550.0,0.00019292,2]
[322754253,1713247838044,-259.43704722,0.00019292,2]
[322754266,1713247838189,-8190.56295278,0.00019292,2]
[322754267,1713247838198,-9186.73658608,0.000198,2]
[322754268,1713247838210,-845.02,0.000198,2]
[322754269,1713247838245,-545.03939917,0.000198,2]
[322754423,1713247840613,-3136.6849168,0.00019292,2]
[322754425,1713247840625,-3215.98674933,0.000198,2]
[322754428,1713247840640,-6143.75419523,0.000198,2]